fUSD/lending_fUSD_20250111
["ID","MTS","AMOUNT","RATE_DAILY","PERIOD"]
[348512792,1736597451326,-691.08,0.00010445,2]
[348512793,1736597451335,-500.0,0.00010445,2]
[348512794,1736597451344,-532.77,0.00010445,2]
[348512795,1736597451353,-500.0,0.00010445,2]
[348512796,1736597451363,-500.0,0.00010445,2]
[348512797,1736597451372,-765.4,0.00010445,2]
[348512798,1736597451381,-500.0,0.00010445,2]
[348512799,1736597451390,-701.52,0.00010445,2]
[348512800,1736597451399,-372.36522053,0.00010445,2]
[348512801,1736597451408,-541.3,0.00010445,2]
[348512802,1736597451417,-463.57683808,0.00010445,2]
[348512803,1736597451427,-500.0,0.00010445,2]
[348512804,1736597451436,-500.0,0.00010445,2]
[348512805,1736597451446,-532.53,0.00010445,2]
[348512806,1736597451455,-500.0,0.00010445,2]
[348512807,1736597451465,-500.0,0.00010445,2]
[348512808,1736597451474,-625.25,0.00010445,2]
[348512809,1736597451483,-598.82,0.00010445,2]
[348512810,1736597451493,-500.0,0.00010445,2]
[348512811,1736597451502,-500.0,0.00010445,2]
[348512812,1736597451511,-619.67,0.00010445,2]
[348512813,1736597451520,-500.0,0.00010445,2]
[348512814,1736597451529,-500.0,0.00010445,2]
[348512815,1736597451538,-500.0,0.00010445,2]
[348512816,1736597451547,-500.0,0.00010445,2]
[348512817,1736597451556,-500.0,0.00010445,2]
[348512818,1736597451566,-591.53,0.00010445,2]
[348512819,1736597451575,-709.37,0.00010445,2]
[348512820,1736597451584,-500.0,0.00010445,2]
[348512821,1736597451593,-500.0,0.00010445,2]
[348512822,1736597451602,-684.77,0.00010445,2]
[348512823,1736597451611,-572.77,0.00010445,2]
[348512824,1736597451620,-500.0,0.00010445,2]
[348512825,1736597451630,-500.0,0.00010445,2]
[348512826,1736597451640,-503.59328416,0.00010445,2]
[348512827,1736597451649,-500.0,0.00010445,2]
[348512828,1736597451658,-500.0,0.00010445,2]
[348512829,1736597451667,-521.87,0.00010445,2]
[348512830,1736597451676,-1019.91,0.00010445,2]
[348512831,1736597451685,-353.95807126,0.00010445,2]
[348512832,1736597451694,-184.38898046,0.00010445,2]
[348512833,1736597451703,-500.0,0.00010445,2]
[348512834,1736597451712,-500.0,0.00010445,2]
[348512835,1736597451721,-500.0,0.00010445,2]
[348512836,1736597451730,-661.56,0.00010445,2]
[348512837,1736597451739,-1694.7,0.00010445,2]
[348512838,1736597451748,-500.0,0.00010445,2]
[348512839,1736597451757,-500.0,0.00010445,2]
[348512840,1736597451766,-586.29,0.00010445,2]
[348512841,1736597451775,-500.0,0.00010445,2]
[348512842,1736597451784,-500.0,0.00010445,2]
[348512843,1736597451793,-500.0,0.00010445,2]
[348512844,1736597451802,-643.52130247,0.00010445,2]
[348512845,1736597451811,-500.0,0.00010445,2]
[348512846,1736597451820,-500.0,0.00010445,2]
[348512847,1736597451829,-500.0,0.00010445,2]
[348512848,1736597451838,-500.0,0.00010445,2]
[348512849,1736597451847,-566.34,0.00010445,2]
[348512850,1736597451857,-1112.5,0.00010445,2]
[348512851,1736597451866,-500.0,0.00010445,2]
[348512852,1736597451875,-500.0,0.00010445,2]
[348512853,1736597451884,-500.0,0.00010445,2]
[348512854,1736597451893,-500.0,0.00010445,2]
[348512855,1736597451902,-500.0,0.00010445,2]
[348512856,1736597451911,-500.0,0.00010445,2]
[348512857,1736597451920,-500.0,0.00010445,2]
[348512858,1736597451929,-561.34,0.00010445,2]
[348512859,1736597451938,-543.89,0.00010445,2]
[348512860,1736597451949,-500.0,0.00010445,2]
[348512861,1736597451961,-525.77,0.00010445,2]
[348512862,1736597451970,-500.0,0.00010445,2]
[348512863,1736597451979,-500.0,0.00010445,2]
[348512864,1736597451987,-500.0,0.00010445,2]
[348512865,1736597451998,-500.0,0.00010445,2]
[348512866,1736597452007,-500.0,0.00010445,2]
[348512867,1736597452016,-500.0,0.00010445,2]
[348512868,1736597452027,-500.0,0.00010445,2]
[348512869,1736597452036,-500.0,0.00010445,2]
[348512870,1736597452046,-500.0,0.00010445,2]
[348512871,1736597452055,-500.0,0.00010445,2]
[348512872,1736597452064,-500.0,0.00010445,2]
[348512873,1736597452073,-500.0,0.00010445,2]
[348512874,1736597452082,-500.0,0.00010445,2]
[348512875,1736597452091,-500.0,0.00010445,2]
[348512876,1736597452100,-500.0,0.00010445,2]
[348512877,1736597452108,-500.0,0.00010445,2]
[348512878,1736597452118,-500.0,0.00010445,2]
[348512879,1736597452127,-500.0,0.00010445,2]
[348512880,1736597452136,-178.02,0.00010445,2]
[348512881,1736597452145,-500.0,0.00010445,2]
[348512882,1736597452154,-1978.95,0.00010445,2]
[348512883,1736597452163,-500.0,0.00010445,2]
[348512884,1736597452172,-500.0,0.00010445,2]
[348512885,1736597452181,-938.93,0.00010445,2]
[348512886,1736597452191,-500.0,0.00010445,2]
[348512887,1736597452200,-500.0,0.00010445,2]
[348512888,1736597452209,-500.0,0.00010445,2]
[348512889,1736597452218,-500.0,0.00010445,2]
[348512890,1736597452228,-500.0,0.00010445,2]
[348512891,1736597452237,-1060.23,0.00010445,2]
[348512892,1736597452246,-500.0,0.00010445,2]
[348512893,1736597452255,-500.0,0.00010445,2]
[348512894,1736597452264,-1610.53,0.00010446,2]
[348512895,1736597452272,-630.45,0.00010447,2]
[348512896,1736597452281,-500.0,0.00010447,2]
[348512897,1736597452291,-659.46,0.00010447,2]
[348512898,1736597452299,-728.65,0.00010447,2]
[348512899,1736597452308,-698.29,0.00010447,2]
[348512900,1736597452317,-803.99,0.00010447,2]
[348512901,1736597452326,-924.6,0.00010447,2]
[348512902,1736597452335,-1742.05,0.00010447,2]
[348512903,1736597452343,-3784.66,0.00010447,2]
[348512904,1736597452353,-500.0,0.00010447,2]
[348512905,1736597452362,-500.0,0.00010447,2]
[348512906,1736597452371,-500.0,0.00010447,2]
[348512907,1736597452380,-1805.15,0.00010447,2]
[348512908,1736597452389,-500.0,0.00010447,2]
[348512909,1736597452399,-1444.75,0.00010447,2]
[348512910,1736597452408,-627.6,0.00010447,2]
[348512911,1736597452417,-1072.68079755,0.00010447,2]
[348512912,1736597452426,-713.42,0.00010447,2]
[348512913,1736597452435,-500.0,0.00010447,2]
[348512914,1736597452445,-501.63531465,0.00010521,2]
[348512915,1736597452455,-938.4,0.00010546,2]
[348512916,1736597452464,-1026.97,0.00010546,2]
[348512917,1736597452473,-1034.56,0.00010547,2]
[348512918,1736597452481,-1088.7,0.00010547,2]
[348512919,1736597452663,-842.03,0.00010547,2]
[348512920,1736597452672,-152.0,0.00010568,4]
[348512921,1736597452682,-151.0,0.00010574,2]
[348512922,1736597452692,-151.0,0.00010574,7]
[348512923,1736597452701,-151.0,0.00010574,7]
[348512924,1736597452710,-151.0,0.00010574,7]
[348512925,1736597452719,-151.0,0.00010574,7]
[348512926,1736597452728,-151.0,0.00010574,7]
[348512927,1736597452737,-151.0,0.00010574,7]
[348512928,1736597452745,-151.0,0.00010574,7]
[348512929,1736597452754,-151.0,0.00010574,7]
[348512930,1736597452763,-151.0,0.00010574,7]
[348512931,1736597452771,-151.0,0.00010574,7]
[348512932,1736597452780,-151.0,0.00010574,7]
[348512933,1736597452789,-151.0,0.00010574,7]
[348512934,1736597452798,-151.0,0.00010574,7]
[348512935,1736597452806,-151.0,0.00010574,7]
[348512936,1736597452817,-151.0,0.00010574,7]
[348512937,1736597452825,-151.0,0.00010574,7]
[348512938,1736597452834,-151.0,0.00010574,7]
[348512939,1736597452843,-151.0,0.00010574,7]
[348512940,1736597452851,-151.0,0.00010574,7]
[348512941,1736597452860,-151.0,0.00010574,7]
[348512942,1736597452869,-151.0,0.00010574,7]
[348512943,1736597452878,-151.0,0.00010574,7]
[348512944,1736597452887,-151.0,0.00010574,7]
[348512945,1736597452895,-151.0,0.00010574,7]
[348512946,1736597452905,-151.0,0.00010574,7]
[348512947,1736597452913,-151.0,0.00010574,7]
[348512948,1736597452922,-151.0,0.00010574,7]
[348512949,1736597452930,-151.0,0.00010574,7]
[348512950,1736597452939,-151.0,0.00010574,7]
[348512951,1736597452951,-151.0,0.00010574,7]
[348512952,1736597452959,-151.0,0.00010574,7]
[348512953,1736597452968,-151.0,0.00010574,7]
[348512954,1736597452977,-151.0,0.00010574,7]
[348512955,1736597452986,-151.0,0.00010574,7]
[348512956,1736597452995,-151.0,0.00010574,7]
[348512957,1736597453004,-151.0,0.00010574,7]
[348512958,1736597453015,-151.0,0.00010574,7]
[348512959,1736597453024,-151.0,0.00010574,7]
[348512960,1736597453033,-151.0,0.00010574,7]
[348512961,1736597453043,-151.0,0.00010574,7]
[348512962,1736597453051,-151.0,0.00010574,7]
[348512963,1736597453060,-151.0,0.00010574,7]
[348512964,1736597453071,-151.0,0.00010574,7]
[348512965,1736597453080,-151.0,0.00010574,7]
[348512966,1736597453088,-151.0,0.00010574,7]
[348512967,1736597453097,-151.0,0.00010574,7]
[348512968,1736597453106,-151.0,0.00010574,7]
[348512969,1736597453116,-151.0,0.00010574,7]
[348512970,1736597453125,-151.0,0.00010574,7]
[348512971,1736597453134,-151.0,0.00010574,7]
[348512972,1736597453144,-151.0,0.00010574,7]
[348512973,1736597453153,-151.0,0.00010574,7]
[348512974,1736597453163,-151.0,0.00010574,7]
[348512975,1736597453172,-151.0,0.00010574,7]
[348512976,1736597453181,-151.0,0.00010574,7]
[348512977,1736597453190,-151.0,0.00010574,7]
[348512978,1736597453200,-151.0,0.00010574,7]
[348512979,1736597453209,-151.0,0.00010574,7]
[348512980,1736597453219,-151.0,0.00010574,7]
[348512981,1736597453228,-151.0,0.00010574,7]
[348512982,1736597453237,-151.0,0.00010574,7]
[348512983,1736597453247,-151.0,0.00010574,7]
[348512984,1736597453256,-151.0,0.00010574,7]
[348512985,1736597453265,-151.0,0.00010574,7]
[348512986,1736597453274,-151.0,0.00010574,7]
[348512987,1736597453283,-151.0,0.00010574,7]
[348512988,1736597453292,-151.0,0.00010574,7]
[348512989,1736597453301,-151.0,0.00010574,7]
[348512990,1736597453310,-151.0,0.00010574,7]
[348512991,1736597453319,-151.0,0.00010574,7]
[348512992,1736597453328,-151.0,0.00010574,7]
[348512993,1736597453337,-151.0,0.00010574,7]
[348512994,1736597453346,-151.0,0.00010574,7]
[348512995,1736597453355,-151.0,0.00010574,7]
[348512996,1736597453363,-151.0,0.00010574,7]
[348512997,1736597453372,-151.0,0.00010574,7]
[348512998,1736597453381,-151.0,0.00010574,7]
[348512999,1736597453389,-151.0,0.00010574,7]
[348513000,1736597453399,-151.0,0.00010574,7]
[348513001,1736597453407,-151.0,0.00010574,7]
[348513002,1736597453416,-151.0,0.00010574,7]
[348513003,1736597453425,-151.0,0.00010574,7]
[348513004,1736597453433,-151.0,0.00010574,7]
[348513005,1736597453443,-151.0,0.00010574,7]
[348513006,1736597453451,-151.0,0.00010574,7]
[348513007,1736597453461,-151.0,0.00010574,7]
[348513008,1736597453470,-151.0,0.00010574,7]
[348513009,1736597453479,-151.0,0.00010574,7]
[348513010,1736597453488,-151.0,0.00010574,7]
[348513011,1736597453497,-151.0,0.00010574,7]
[348513012,1736597453505,-151.0,0.00010574,7]
[348513013,1736597453514,-151.0,0.00010574,7]
[348513014,1736597453523,-151.0,0.00010574,7]
[348513015,1736597453532,-151.0,0.00010574,7]
[348513016,1736597453541,-151.0,0.00010574,7]
[348513017,1736597453550,-151.0,0.00010574,7]
[348513018,1736597453558,-151.0,0.00010574,7]
[348513019,1736597453567,-151.0,0.00010574,7]
[348513020,1736597453576,-151.0,0.00010574,7]
[348513021,1736597453585,-151.0,0.00010574,7]
[348513022,1736597453594,-501.63531465,0.00010624,2]
[348513023,1736597453603,-185.27786974,0.00010682,2]
[348513024,1736597453612,-889.35,0.00010718,2]
[348513025,1736597453621,-756.17,0.00010718,2]
[348513026,1736597453630,-500.0,0.00010718,2]
[348513027,1736597453640,-500.0,0.00010718,2]
[348513028,1736597453649,-500.0,0.00010718,2]
[348513029,1736597453658,-864.479159,0.00010718,2]
[348513030,1736597453667,-628.28,0.00010718,2]
[348513031,1736597453677,-500.0,0.00010718,2]
[348513032,1736597453686,-845.669752,0.00010718,2]
[348513033,1736597453695,-500.0,0.00010718,2]
[348513034,1736597453704,-2203.32,0.00010718,2]
[348513035,1736597453713,-500.0,0.00010718,2]
[348513036,1736597453723,-500.0,0.00010718,2]
[348513037,1736597453733,-500.0,0.00010718,2]
[348513038,1736597453743,-500.0,0.00010718,2]
[348513039,1736597453753,-333.52697546,0.00010718,2]
[348513040,1736597453763,-555.27,0.00010718,2]
[348513041,1736597453772,-500.0,0.00010718,2]
[348513042,1736597453782,-500.0,0.00010718,2]
[348513043,1736597453791,-500.0,0.00010718,2]
[348513044,1736597453800,-500.0,0.00010718,2]
[348513045,1736597453810,-500.0,0.00010718,2]
[348513046,1736597453819,-500.0,0.00010718,2]
[348513047,1736597453828,-500.0,0.00010718,2]
[348513048,1736597453838,-500.0,0.00010718,2]
[348513049,1736597453847,-2440.07,0.00010718,2]
[348513050,1736597453856,-276.04225939,0.00010718,2]
[348513051,1736597453866,-500.0,0.00010718,2]
[348513052,1736597453875,-500.0,0.00010718,2]
[348513053,1736597453884,-500.0,0.00010718,2]
[348513054,1736597453893,-500.0,0.00010718,2]
[348513055,1736597453902,-542.81,0.00010718,2]
[348513056,1736597453911,-2168.47,0.00010718,2]
[348513057,1736597453920,-500.0,0.00010718,2]
[348513058,1736597453930,-837.11,0.00010718,2]
[348513059,1736597453939,-500.0,0.00010718,2]
[348513060,1736597453952,-500.0,0.00010718,2]
[348513061,1736597453961,-1302.44,0.00010718,2]
[348513062,1736597453970,-952.74,0.00010718,2]
[348513063,1736597453979,-500.0,0.00010718,2]
[348513064,1736597453990,-716.39,0.00010718,2]
[348513065,1736597453999,-986.22,0.00010718,2]
[348513066,1736597454009,-195.02175965,0.00010718,2]
[348513067,1736597454017,-643.61,0.00010718,2]
[348513068,1736597454028,-500.0,0.00010718,2]
[348513069,1736597454037,-2253.75,0.00010718,2]
[348513070,1736597454047,-500.0,0.00010718,2]
[348513071,1736597454056,-543.99,0.00010718,2]
[348513072,1736597454065,-500.0,0.00010718,2]
[348513073,1736597454074,-916.36,0.00010718,2]
[348513074,1736597454083,-500.0,0.00010718,2]
[348513075,1736597454092,-500.0,0.00010718,2]
[348513076,1736597454102,-531.96,0.00010718,2]
[348513077,1736597454116,-557.78,0.00010718,2]
[348513078,1736597454133,-578.34,0.00010718,2]
[348513079,1736597454145,-500.0,0.00010718,2]
[348513080,1736597454157,-955.55,0.00010718,2]
[348513081,1736597454171,-500.0,0.00010718,2]
[348513082,1736597454185,-2737.36,0.00010718,2]
[348513083,1736597454200,-519.55097188,0.00010718,2]
[348513084,1736597454213,-543.37,0.00010718,2]
[348513085,1736597454226,-500.0,0.00010718,2]
[348513086,1736597454237,-1169.62,0.00010718,2]
[348513087,1736597454250,-1072.01,0.00010718,2]
[348513088,1736597454264,-500.0,0.00010718,2]
[348513089,1736597454277,-1644.64,0.00010718,2]
[348513090,1736597454291,-865.21,0.00010718,2]
[348513091,1736597454306,-1683.29,0.00010718,2]
[348513092,1736597454319,-1378.72,0.00010718,2]
[348513093,1736597454334,-2661.33,0.00010718,2]
[348513094,1736597454347,-500.0,0.00010718,2]
[348513095,1736597454361,-1005.4,0.00010718,2]
[348513096,1736597454373,-3163.08,0.00010718,2]
[348513097,1736597454387,-716.64,0.00010718,2]
[348513098,1736597454400,-3026.43,0.00010718,2]
[348513099,1736597454413,-927.48,0.00010718,2]
[348513100,1736597454423,-1692.93,0.00010718,2]
[348513101,1736597454435,-1249.42,0.00010718,2]
[348513102,1736597454447,-500.0,0.00010718,2]
[348513103,1736597454463,-1182.11,0.00010718,2]
[348513104,1736597454473,-1080.18,0.00010718,2]
[348513105,1736597454483,-1426.27,0.00010718,2]
[348513106,1736597454495,-1995.2,0.00010718,2]
[348513107,1736597454509,-765.62,0.00010718,2]
[348513108,1736597454521,-562.36,0.00010718,2]
[348513109,1736597454531,-538.93,0.00010718,2]
[348513110,1736597454542,-1456.54,0.00010718,2]
[348513111,1736597454553,-1159.75,0.00010718,2]
[348513112,1736597454565,-1113.67,0.00010718,2]
[348513113,1736597454576,-500.0,0.00010718,2]
[348513114,1736597454588,-500.0,0.00010718,2]
[348513115,1736597454599,-1067.27,0.00010718,2]
[348513116,1736597454611,-1081.51,0.00010718,2]
[348513117,1736597454622,-3472.83,0.00010718,2]
[348513118,1736597454634,-847.86,0.00010718,2]
[348513119,1736597454646,-500.0,0.00010718,2]
[348513120,1736597454658,-856.18,0.00010718,2]
[348513121,1736597454671,-500.0,0.00010718,2]
[348513122,1736597454682,-500.0,0.00010718,2]
[348513123,1736597454693,-1358.71,0.00010718,2]
[348513124,1736597454704,-500.0,0.00010719,2]
[348513125,1736597454715,-500.0,0.00010719,2]
[348513126,1736597454727,-500.0,0.00010719,2]
[348513127,1736597454739,-500.0,0.00010719,2]
[348513128,1736597454751,-500.0,0.00010719,2]
[348513129,1736597454763,-500.0,0.00010719,2]
[348513130,1736597454774,-500.0,0.00010719,2]
[348513131,1736597454786,-833.11,0.00010719,2]
[348513132,1736597454798,-500.0,0.00010719,2]
[348513133,1736597454813,-500.0,0.00010719,2]
[348513134,1736597454825,-500.0,0.00010719,2]
[348513135,1736597454837,-500.0,0.00010719,2]
[348513136,1736597454849,-500.0,0.00010719,2]
[348513137,1736597454860,-500.0,0.00010719,2]
[348513138,1736597454872,-500.0,0.00010719,2]
[348513139,1736597454883,-500.0,0.00010719,2]
[348513140,1736597454895,-500.0,0.00010719,2]
[348513141,1736597454907,-500.0,0.00010719,2]
[348513142,1736597454918,-500.0,0.00010719,2]
[348513143,1736597454929,-655.39,0.00010719,2]
[348513144,1736597454941,-500.0,0.00010719,2]
[348513145,1736597454955,-500.0,0.00010719,2]
[348513146,1736597454967,-500.0,0.00010719,2]
[348513147,1736597454978,-500.0,0.00010719,2]
[348513148,1736597454990,-681.11,0.00010719,2]
[348513149,1736597455002,-173.64,0.00010719,2]
[348513150,1736597455013,-500.0,0.00010719,2]
[348513151,1736597455025,-500.0,0.00010719,2]
[348513152,1736597455037,-500.0,0.00010719,2]
[348513153,1736597455155,-691.08,0.00010719,2]
[348513154,1736597455168,-559.67,0.00010719,2]
[348513155,1736597455180,-500.0,0.00010719,2]
[348513156,1736597455192,-765.4,0.00010719,2]
[348513157,1736597455206,-500.0,0.00010719,2]
[348513158,1736597455218,-701.52,0.00010719,2]
[348513159,1736597455230,-478.88,0.00010719,2]
[348513160,1736597455241,-500.0,0.00010719,2]
[348513161,1736597455254,-532.53,0.00010719,2]
[348513162,1736597455266,-500.0,0.00010719,2]
[348513163,1736597455278,-500.0,0.00010719,2]
[348513164,1736597455289,-625.25,0.00010719,2]
[348513165,1736597455301,-598.82,0.00010719,2]
[348513166,1736597455312,-500.0,0.00010719,2]
[348513167,1736597455324,-500.0,0.00010719,2]
[348513168,1736597455335,-619.67,0.00010719,2]
[348513169,1736597455347,-500.0,0.00010719,2]
[348513170,1736597455359,-500.0,0.00010719,2]
[348513171,1736597455370,-500.0,0.00010719,2]
[348513172,1736597455382,-500.0,0.00010719,2]
[348513173,1736597455393,-500.0,0.00010719,2]
[348513174,1736597455405,-591.53,0.00010719,2]
[348513175,1736597455417,-709.37,0.00010719,2]
[348513176,1736597455428,-183.07856933,0.00010719,2]
[348513177,1736597455442,-500.0,0.00010719,2]
[348513178,1736597455457,-684.77,0.00010719,2]
[348513179,1736597455470,-572.77,0.00010719,2]
[348513180,1736597455482,-500.0,0.00010719,2]
[348513181,1736597455493,-500.0,0.00010719,2]
[348513182,1736597455505,-500.0,0.00010719,2]
[348513183,1736597455518,-500.0,0.00010719,2]
[348513184,1736597455530,-521.87,0.00010719,2]
[348513185,1736597455542,-1019.91,0.00010719,2]
[348513186,1736597455554,-500.0,0.00010719,2]
[348513187,1736597455566,-500.0,0.00010719,2]
[348513188,1736597455578,-661.56,0.00010719,2]
[348513189,1736597455590,-1694.7,0.00010719,2]
[348513190,1736597455601,-160.6128454,0.00010719,2]
[348513191,1736597455613,-277.2,0.00010719,2]
[348513192,1736597455626,-500.0,0.00010719,2]
[348513193,1736597455638,-500.0,0.00010719,2]
[348513194,1736597455651,-500.0,0.00010719,2]
[348513195,1736597455664,-256.82510631,0.00010719,2]
[348513196,1736597455677,-500.0,0.00010719,2]
[348513197,1736597455691,-531.84119353,0.00010719,2]
[348513198,1736597455722,-566.34,0.00010719,2]
[348513199,1736597455735,-1112.5,0.00010719,2]
[348513200,1736597455746,-500.0,0.00010719,2]
[348513201,1736597455755,-500.0,0.00010719,2]
[348513202,1736597455764,-479.38979912,0.00010719,2]
[348513203,1736597455775,-500.0,0.00010719,2]
[348513204,1736597455784,-514.30030868,0.00010719,2]
[348513205,1736597455793,-500.0,0.00010719,2]
[348513206,1736597455802,-561.34,0.00010719,2]
[348513207,1736597455811,-500.0,0.00010719,2]
[348513208,1736597455820,-543.89,0.00010719,2]
[348513209,1736597455829,-525.77,0.00010719,2]
[348513210,1736597455837,-500.0,0.00010719,2]
[348513211,1736597455846,-500.0,0.00010719,2]
[348513212,1736597455857,-500.0,0.00010719,2]
[348513213,1736597455866,-500.0,0.00010719,2]
[348513214,1736597455875,-500.0,0.00010719,2]
[348513215,1736597455884,-500.0,0.00010719,2]
[348513216,1736597455894,-563.42388103,0.00010719,2]
[348513217,1736597455903,-500.0,0.00010719,2]
[348513218,1736597455912,-500.0,0.00010719,2]
[348513219,1736597455921,-1978.95,0.00010719,2]
[348513220,1736597455930,-500.0,0.00010719,2]
[348513221,1736597455939,-339.55545181,0.00010719,2]
[348513222,1736597455949,-938.93,0.00010719,2]
[348513223,1736597455962,-500.0,0.00010719,2]
[348513224,1736597455971,-250.6285521,0.00010719,2]
[348513225,1736597455981,-500.0,0.00010719,2]
[348513226,1736597455990,-1060.23,0.00010719,2]
[348513227,1736597456002,-1610.53,0.0001072,2]
[348513228,1736597456011,-630.45,0.00010721,2]
[348513229,1736597456020,-500.0,0.00010721,2]
[348513230,1736597456030,-659.46,0.00010721,2]
[348513231,1736597456355,-728.65,0.00010721,2]
[348513232,1736597456379,-698.29,0.00010721,2]
[348513233,1736597456394,-803.99,0.00010721,2]
[348513234,1736597456403,-924.6,0.00010721,2]
[348513235,1736597456412,-1742.05,0.00010721,2]
[348513236,1736597456422,-3784.66,0.00010721,2]
[348513237,1736597456431,-500.0,0.00010721,2]
[348513238,1736597456441,-500.0,0.00010721,2]
[348513239,1736597456451,-500.0,0.00010721,2]
[348513240,1736597456460,-1805.15,0.00010721,2]
[348513241,1736597456470,-500.0,0.00010721,2]
[348513242,1736597456480,-1444.75,0.00010721,2]
[348513243,1736597456489,-627.6,0.00010721,2]
[348513244,1736597456498,-713.42,0.00010721,2]
[348513245,1736597456507,-500.0,0.00010721,2]
[348513246,1736597456516,-501.63531465,0.00010728,2]
[348513247,1736597456526,-185.27786974,0.00010809,2]
[348513248,1736597456535,-938.4,0.0001082,2]
[348513249,1736597456544,-1026.97,0.0001082,2]
[348513250,1736597456553,-1034.56,0.00010821,2]
[348513251,1736597456563,-1088.7,0.00010821,2]
[348513252,1736597456572,-842.03,0.00010821,2]
[348513253,1736597456581,-501.63531465,0.00010831,2]
[348513254,1736597456590,-587.0,0.00010834,2]
[348513255,1736597456599,-152.0,0.00010895,5]
[348513256,1736597456608,-151.0,0.000109,2]
[348513257,1736597456617,-165.6574721,0.000109,2]
[348513258,1736597456625,-501.63531465,0.00010934,2]
[348513259,1736597456635,-185.27786974,0.00010935,2]
[348513260,1736597456644,-151.92,0.00010945,2]
[348513261,1736597456653,-150.0,0.00010958,2]
[348513262,1736597456662,-500.0,0.00010958,2]
[348513263,1736597456672,-999.0,0.00010958,2]
[348513264,1736597456681,-150.0,0.00010959,2]
[348513265,1736597456691,-841.536,0.00010984,2]
[348513266,1736597456701,-199.949,0.00010984,2]
[348513267,1736597456709,-500.0,0.00010986,2]
[348513268,1736597456719,-889.35,0.00010992,2]
[348513269,1736597456729,-756.17,0.00010992,2]
[348513270,1736597456739,-500.0,0.00010992,2]
[348513271,1736597456749,-500.0,0.00010992,2]
[348513272,1736597456759,-500.0,0.00010992,2]
[348513273,1736597456769,-864.479159,0.00010992,2]
[348513274,1736597456778,-628.28,0.00010992,2]
[348513275,1736597456787,-500.0,0.00010992,2]
[348513276,1736597456796,-845.669752,0.00010992,2]
[348513277,1736597456806,-500.0,0.00010992,2]
[348513278,1736597456815,-2203.32,0.00010992,2]
[348513279,1736597456824,-614.50831129,0.00010992,2]
[348513280,1736597456833,-500.0,0.00010992,2]
[348513281,1736597456843,-500.0,0.00010992,2]
[348513282,1736597456852,-500.0,0.00010992,2]
[348513283,1736597456861,-555.27,0.00010992,2]
[348513284,1736597456870,-500.0,0.00010992,2]
[348513285,1736597456879,-500.0,0.00010992,2]
[348513286,1736597456888,-500.0,0.00010992,2]
[348513287,1736597456897,-500.0,0.00010992,2]
[348513288,1736597456906,-500.0,0.00010992,2]
[348513289,1736597456918,-500.0,0.00010992,2]
[348513290,1736597456929,-500.0,0.00010992,2]
[348513291,1736597456938,-500.0,0.00010992,2]